bitfinex/quotes_SOLUSD_20250130
["timestamp","ask_amount","ask_price","bid_price","bid_amount"]
[1738225955238,8.04792215,239.53,239.46,8.04792215]
[1738225955421,13.41184853,239.52,239.44,8.04792215]
[1738225955623,13.41184853,239.5,239.42,8.11092215]
[1738225955954,0.62585883,239.53,239.42,8.11092215]
[1738225955955,8.04792215,239.53,239.44,8.04792215]
[1738225957249,12.22292215,239.53,239.44,8.04792215]
[1738225957423,8.04792215,239.51,239.42,8.11092215]
[1738225957630,13.41184853,239.5,239.42,8.11092215]
[1738225957948,13.41184853,239.5,239.44,8.04792215]
[1738225960118,17.58714853,239.5,239.44,8.04792215]
[1738225960345,17.58714853,239.5,239.42,8.11092215]
[1738225962147,12.22352215,239.49,239.42,8.11092215]
[1738225962854,13.41184853,239.48,239.42,8.11092215]
[1738225963026,13.41184853,239.48,239.42,0.063]
[1738225964926,17.58764853,239.48,239.42,0.063]
[1738225965126,8.04792215,239.47,239.42,0.063]
[1738225966255,4.176,239.46,239.42,0.063]
[1738225967455,4.1763,239.45,239.42,0.063]
[1738225969138,17.58784853,239.46,239.42,0.063]
[1738225975041,6.1535,239.52,239.45,8.04792215]
[1738225975240,4.1751,239.52,239.45,8.04792215]
[1738225979772,13.41184853,239.51,239.45,8.04792215]
[1738225979947,17.58704853,239.51,239.43,8.04792215]
[1738225980273,36.69872951,239.51,239.42,0.063]
[1738225980571,13.41184853,239.48,239.42,0.063]
[1738225981969,13.41184853,239.46,239.42,0.063]
[1738225982450,8.04792215,239.45,239.42,0.063]
[1738225983163,13.41184853,239.44,239.42,0.063]
[1738225983362,8.04792215,239.43,239.42,0.063]
[1738225983573,21.45977068,239.43,239.42,0.063]
[1738225984273,25.63627068,239.43,239.42,0.063]
[1738225984743,26.13823068,239.43,239.42,0.063]
[1738225989481,0.50196,239.39,239.35,0.063]
[1738225989783,8.04792215,239.36,239.35,0.063]
[1738225991176,12.22572215,239.36,239.35,0.063]
[1738225994462,26.13953068,239.36,239.35,0.063]
[1738225995953,13.91380853,239.35,239.3,0.063]
[1738225996158,22.58758951,239.35,239.34,0.0001]
[1738225996769,26.76548951,239.35,239.34,0.0001]
[1738225997283,41.96173068,239.31,239.3,0.0001]
[1738225997486,42.58758951,239.31,239.3,0.0001]
[1738225998285,46.76618951,239.31,239.3,0.0001]
[1738225999253,53.30868951,239.31,239.3,0.0001]
[1738225999468,20.0,239.23,239.22,0.0001]
[1738225999669,42.08562951,239.23,239.22,0.0001]
[1738225999863,42.58758951,239.23,239.22,0.0001]
[1738226000087,13.91380853,239.22,239.21,0.0001]
[1738226000268,18.09400853,239.22,239.21,0.0001]
[1738226007498,19.26583153,239.22,239.21,0.0001]
[1738226008574,17.59204853,239.22,239.21,0.0001]
[1738226010604,18.09400853,239.22,239.21,0.0001]
[1738226010806,33.91380853,239.2,239.19,0.0001]
[1738226010971,20.0,239.16,239.15,0.063]
[1738226011299,74.27731811,239.16,239.15,0.0001]
[1738226011488,74.77927811,239.16,239.15,0.0001]
[1738226012498,79.96057811,239.16,239.15,0.0001]
[1738226013397,78.96057811,239.16,239.15,0.0001]
[1738226015003,79.96057811,239.16,239.15,0.0001]
[1738226016803,78.96057811,239.16,239.15,0.0001]
[1738226016986,26.26692951,239.16,239.15,0.0001]
[1738226017194,25.64107068,239.16,239.15,0.0001]
[1738226017391,21.45977068,239.16,239.15,0.0001]
[1738226017593,8.04792215,239.18,239.15,0.0001]
[1738226017986,13.41184853,239.19,239.15,0.0001]
[1738226018603,26.0060278,239.19,239.15,0.0001]
[1738226018906,12.59417927,239.19,239.15,0.0001]
[1738226019404,4.1807,239.2,239.15,0.0001]
[1738226020602,12.59417927,239.19,239.15,0.0001]
[1738226024215,16.77487927,239.19,239.15,0.0001]
[1738226027916,13.91380853,239.16,239.15,0.0001]
[1738226028091,14.53966736,239.16,239.15,0.0001]
[1738226029188,13.41184853,239.16,239.15,0.0001]
[1738226030006,17.59314853,239.16,239.15,0.0001]
[1738226033231,12.59417927,239.19,239.15,0.0001]
[1738226033390,12.59417927,239.21,239.15,0.0001]
[1738226033711,12.59417927,239.19,239.15,0.0001]
[1738226034293,12.59417927,239.17,239.15,0.0001]
[1738226036217,16.77527927,239.17,239.15,0.0001]
[1738226040601,8.06099002,239.18,239.15,0.0001]
[1738226042122,4.1811,239.17,239.15,0.0001]
[1738226047615,8.06099002,239.16,239.15,0.0001]
[1738226048240,4.1811,239.17,239.15,0.0001]
[1738226048413,12.24159002,239.2,239.15,0.0001]
[1738226048615,0.03,239.21,239.16,8.06099002]
[1738226048930,0.03,239.21,239.18,8.06099002]
[1738226049630,0.03,239.21,239.2,8.06099002]
[1738226052102,0.03,239.21,239.2,8.68786696]
[1738226054618,0.03,239.21,239.2,8.06099002]
[1738226056512,0.03,239.21,239.2,8.68785615]
[1738226057236,0.03,239.21,239.2,8.06099002]
[1738226059858,0.03,239.21,239.18,8.06099002]
[1738226060003,0.03,239.21,239.16,8.06099002]
[1738226061707,0.03,239.21,239.18,8.06099002]
[1738226062547,0.03,239.21,239.2,8.06099002]
[1738226065036,0.03,239.21,239.17,8.06099002]
[1738226065505,0.03,239.21,239.15,9.69809002]
[1738226065707,8.06099002,239.2,239.15,0.0001]
[1738226067010,12.24169002,239.2,239.15,0.0001]
[1738226067212,8.06099002,239.2,239.15,0.0001]
[1738226071720,0.03,239.21,239.15,0.0001]
[1738226073736,0.03,239.21,239.18,8.06099002]
[1738226075247,0.03,239.21,239.17,8.06099002]
[1738226075750,0.03,239.21,239.16,8.06099002]
[1738226090964,0.03,239.21,239.18,8.06099002]
[1738226091451,0.03,239.21,239.15,0.0001]
[1738226091452,0.03,239.21,239.2,8.06099002]
[1738226093058,0.03,239.21,239.2,8.56295002]
[1738226096064,0.03,239.22,239.21,2.0]
[1738226096271,0.03,239.22,239.21,2.62672953]
[1738226096959,0.03,239.22,239.21,1.62672953]
[1738226097654,0.03,239.22,239.21,0.62672953]
[1738226097861,0.03,239.22,239.21,1.12868953]
[1738226098569,0.03,239.22,239.21,8.06099002]
[1738226099660,0.03,239.22,239.21,8.68785376]
[1738226100466,0.03,239.22,239.21,8.06099002]
[1738226100843,0.03,239.22,239.2,2.74]
[1738226100844,0.03,239.22,239.2,8.06099002]
[1738226101039,0.03,239.22,239.17,8.06099002]
[1738226101256,0.03,239.22,239.18,8.06099002]
[1738226103759,0.03,239.22,239.21,8.06099002]
[1738226107470,0.03,239.22,239.21,20.0]
[1738226107772,0.03,239.22,239.21,20.063]
[1738226109379,0.03,239.22,239.21,0.063]
[1738226110051,16.17769002,239.22,239.21,0.063]
[1738226111251,8.1167,239.22,239.21,0.063]
[1738226112984,12.2969,239.22,239.21,0.063]
[1738226113359,33.76973855,239.22,239.21,0.063]
[1738226116061,20.35789002,239.22,239.21,0.063]
[1738226116384,0.03,239.22,239.21,0.063]
[1738226117278,21.50283855,239.22,239.21,0.063]
[1738226117586,25.68303855,239.22,239.21,0.063]
[1738226119279,26.30889738,239.22,239.21,0.063]
[1738226120386,25.68303855,239.22,239.21,0.063]
[1738226120990,25.68303855,239.22,239.21,0.0001]
[1738226120991,34.41309855,239.22,239.21,0.0001]
[1738226121169,0.50196,239.17,239.15,0.0001]
[1738226121489,0.50196,239.19,239.15,0.0001]
[1738226121490,22.09869738,239.16,239.15,0.0001]
[1738226122084,21.47283855,239.16,239.15,0.0001]
[1738226123079,25.65413855,239.16,239.15,0.0001]
[1738226124888,26.15609855,239.16,239.15,0.0001]
[1738226126297,59.02591746,239.16,239.15,0.0001]
[1738226126671,21.97960853,239.15,239.13,0.0001]
[1738226126871,22.09869738,239.14,239.13,0.0001]
[1738226127179,26.78225738,239.14,239.13,0.0001]
[1738226127696,26.28029738,239.14,239.13,0.0001]
[1738226128906,26.78225738,239.14,239.13,0.0001]
[1738226129077,13.41184853,239.13,239.12,0.0001]
[1738226129275,17.59364853,239.13,239.12,0.0001]
[1738226129469,33.91380853,239.11,239.1,0.063]
[1738226129785,13.91380853,239.1,239.06,0.063]
[1738226129991,21.97479855,239.07,239.06,0.063]
[1738226130194,22.60065738,239.07,239.06,0.063]
[1738226131083,21.47283855,239.07,239.06,0.063]
[1738226131398,26.15759855,239.07,239.06,0.0001]
[1738226131585,26.78345738,239.07,239.06,0.0001]
[1738226143105,26.59547738,239.07,239.06,0.0001]
[1738226144480,21.53583855,239.07,239.06,0.0001]
[1738226144807,13.47484853,239.07,239.06,0.0001]
[1738226145411,25.71863855,239.07,239.06,0.0001]
[1738226145902,0.063,239.07,239.06,0.0001]
[1738226149580,0.063,239.07,239.06,8.06109002]
[1738226152793,0.063,239.07,239.06,9.89557002]
[1738226156096,0.063,239.07,239.06,9.64459002]
[1738226157208,0.063,239.07,239.06,9.89557002]
[1738226158012,0.063,239.07,239.06,17.78895002]
[1738226158608,0.063,239.07,239.06,16.53797002]
[1738226158907,0.063,239.07,239.06,16.28699002]
[1738226159295,0.063,239.07,239.06,9.64459002]
[1738226159994,0.063,239.07,239.06,1.5836]
[1738226160614,0.063,239.07,239.06,9.64459002]
[1738226161615,0.063,239.07,239.06,9.89557002]
[1738226162001,0.063,239.07,239.06,10.89557002]
[1738226164112,0.063,239.07,239.06,9.89557002]
[1738226164708,0.063,239.07,239.06,9.64459002]
[1738226166290,0.063,239.07,239.06,10.14655002]
[1738226166615,0.063,239.07,239.06,11.14655002]
[1738226168596,4.2102,239.22,239.1,0.25098]
[1738226168921,0.03,239.22,239.2,8.06099002]
[1738226169699,0.03,239.22,239.17,8.06099002]
[1738226169904,13.41184853,239.21,239.1,12.57446183]
[1738226170102,8.06099002,239.18,239.11,8.06099002]
[1738226170306,12.24209002,239.17,239.09,8.06099002]
[1738226170911,8.06099002,239.17,239.1,8.06099002]
[1738226171117,8.06099002,239.18,239.1,8.06099002]
[1738226171436,8.06099002,239.2,239.12,8.06099002]
[1738226172225,4.1805,239.21,239.09,8.06099002]
[1738226172226,8.06099002,239.17,239.09,8.06099002]
[1738226172423,12.24209002,239.17,239.09,8.06099002]
[1738226172804,8.06099002,239.16,239.08,8.06099002]
[1738226173217,8.06099002,239.18,239.1,8.06099002]
[1738226173526,8.06099002,239.18,239.11,8.06099002]
[1738226174015,21.47283855,239.19,239.11,8.06099002]
[1738226174218,8.06099002,239.19,239.11,8.06099002]
[1738226174530,8.09099002,239.22,239.14,8.06099002]
[1738226174827,21.50283855,239.22,239.14,8.06099002]
[1738226175001,8.09099002,239.22,239.15,8.06099002]
[1738226175514,8.06099002,239.2,239.12,8.06099002]
[1738226175730,4.2103,239.22,239.12,8.06099002]
[1738226175731,8.06099002,239.19,239.12,8.06099002]
[1738226176425,12.24179002,239.19,239.12,8.06099002]
[1738226176806,12.24179002,239.19,239.11,8.06099002]
[1738226177425,8.06099002,239.18,239.1,8.06099002]
[1738226177641,8.06099002,239.16,239.08,8.06099002]
[1738226177926,8.06099002,239.14,239.09,20.0]
[1738226180004,13.41184853,239.13,239.09,20.0]
[1738226180328,8.06099002,239.12,239.07,0.03]
[1738226180641,8.06099002,239.12,239.07,20.03]
[1738226181932,8.06099002,239.14,239.07,0.03]
[1738226182319,13.41184853,239.13,239.07,0.03]
[1738226185726,13.41184853,239.13,239.08,8.06099002]
[1738226185933,14.39299002,239.18,239.1,8.06099002]
[1738226186309,6.332,239.18,239.12,8.06099002]
[1738226186522,1.5756,239.19,239.14,8.06099002]
[1738226186713,0.063,239.19,239.14,8.06099002]
[1738226188417,0.063,239.19,239.16,8.06099002]
[1738226190309,0.063,239.19,239.18,8.06099002]
[1738226199319,0.063,239.19,239.18,8.93892055]
[1738226199524,0.063,239.19,239.18,9.93892055]
[1738226199847,0.063,239.19,239.18,8.93892055]
[1738226200862,0.063,239.19,239.18,8.06099002]
[1738226205262,0.063,239.19,239.18,8.31197002]
[1738226205430,0.063,239.19,239.18,8.56295002]
[1738226206045,0.063,239.19,239.18,10.13695002]
[1738226206246,0.063,239.19,239.18,11.13695002]
[1738226206559,0.03,239.22,239.21,20.50196]
[1738226206729,0.03,239.22,239.21,29.18976792]
[1738226207855,0.03,239.22,239.21,28.68780792]
[1738226208057,0.03,239.22,239.21,28.06099002]
[1738226211058,0.03,239.22,239.21,28.31197002]
[1738226211268,0.03,239.22,239.21,28.56295002]
[1738226211462,0.03,239.22,239.21,29.18977388]
[1738226211962,0.03,239.22,239.21,28.56295002]
[1738226212959,0.03,239.22,239.21,30.18980264]
[1738226214766,0.063,239.31,239.25,0.25098]
[1738226214945,0.063,239.31,239.3,8.06099002]
[1738226225755,0.063,239.31,239.3,8.31197002]
[1738226225952,0.063,239.31,239.3,8.56295002]
[1738226228385,0.063,239.31,239.3,8.31197002]
[1738226230177,0.063,239.31,239.3,8.56295002]
[1738226233480,0.063,239.31,239.3,9.56295002]
[1738226233675,0.063,239.31,239.3,10.1895051]
[1738226234458,0.03,239.36,239.34,0.25098]
[1738226234678,0.03,239.36,239.35,8.06099002]
[1738226235054,0.03,239.36,239.35,9.18945503]
[1738226235787,0.03,239.36,239.35,10.18945503]
[1738226236381,0.03,239.36,239.35,14.68245066]
[1738226236678,0.03,239.43,239.41,0.25098]
[1738226236882,0.03,239.43,239.42,8.31197002]
[1738226238981,0.03,239.43,239.42,8.56295002]
[1738226241189,0.03,239.43,239.42,8.06099002]
[1738226241391,0.03,239.43,239.4,8.06099002]
[1738226246184,0.03,239.43,239.42,8.06099002]
[1738226247491,0.03,239.43,239.42,8.56295002]
[1738226247785,0.03,239.43,239.42,9.18923081]
[1738226250074,0.03,239.45,239.42,9.18923081]
[1738226250281,0.03,239.45,239.44,28.56295002]
[1738226250463,0.03,239.45,239.44,29.18916583]
[1738226254090,0.03,239.45,239.44,28.06099002]
[1738226256206,0.03,239.45,239.42,8.06099002]
[1738226256497,0.03,239.45,239.4,8.06099002]
[1738226256705,14.71419002,239.43,239.35,8.06099002]
[1738226256902,14.71419002,239.43,239.34,8.06099002]
[1738226256903,8.06099002,239.42,239.34,8.06099002]
[1738226257400,6.6532,239.43,239.34,8.06099002]
[1738226257401,8.06099002,239.41,239.34,8.06099002]
[1738226257702,8.06099002,239.41,239.33,8.06099002]
[1738226258074,8.06099002,239.41,239.34,8.06099002]
[1738226258493,12.23799002,239.41,239.34,8.06099002]
[1738226258797,12.57164094,239.39,239.31,12.57164094]
[1738226260503,4.1774,239.38,239.31,12.57164094]
[1738226263484,12.57164094,239.39,239.31,12.57164094]
[1738226264097,12.57164094,239.39,239.32,12.57164094]
[1738226264305,12.57164094,239.4,239.33,12.57164094]
[1738226266104,12.57164094,239.4,239.32,12.57164094]
[1738226267200,12.57164094,239.42,239.34,12.57164094]
[1738226268109,6.6532,239.43,239.36,12.57164094]
[1738226268482,6.6532,239.43,239.38,12.57164094]
[1738226275286,10.8297,239.43,239.36,12.57164094]
[1738226277920,14.17994094,239.45,239.44,20.0]
[1738226277921,0.03,239.45,239.44,20.0]
[1738226278210,0.03,239.46,239.44,13.19792724]
[1738226278384,0.03,239.46,239.44,12.57164094]
[1738226280493,0.03,239.46,239.45,1.12824186]
[1738226281487,0.03,239.46,239.44,12.57164094]
[1738226282614,0.03,239.46,239.45,8.03752714]
[1738226285113,0.03,239.46,239.45,8.53948714]
[1738226285501,0.03,239.46,239.45,9.16565836]
[1738226286315,0.03,239.46,239.45,9.19565836]
[1738226287221,0.03,239.46,239.45,8.56948714]
[1738226290221,0.03,239.46,239.45,8.06752714]
[1738226291918,0.03,239.46,239.45,8.31850714]
[1738226292123,0.03,239.46,239.45,8.56948714]
[1738226292332,0.03,239.46,239.45,9.19565523]
[1738226295903,0.03,239.46,239.45,10.19565523]
[1738226296124,0.03,239.46,239.45,11.19565523]
[1738226296629,0.03,239.46,239.45,24.60750376]
[1738226297718,0.03,239.46,239.45,26.28843611]
[1738226303334,0.03,239.54,239.5,0.25098]
[1738226303539,0.03,239.54,239.53,8.03752714]
[1738226305532,0.03,239.54,239.53,8.28850714]
[1738226305713,0.063,239.55,239.54,0.50196]
[1738226305939,0.063,239.55,239.54,1.12793125]
[1738226307144,0.063,239.55,239.54,0.25098]
[1738226307448,0.063,239.55,239.53,8.03752714]
[1738226310743,0.063,239.55,239.54,0.50196]
[1738226310957,0.03,239.6,239.58,0.50196]
[1738226311142,0.03,239.6,239.56,1.0]
[1738226311143,0.03,239.6,239.59,8.66338798]
[1738226311832,0.03,239.6,239.59,8.03752714]
[1738226315649,0.03,239.6,239.57,8.03752714]
[1738226318042,8.06752714,239.6,239.51,8.03752714]
[1738226318238,8.03752714,239.58,239.51,8.03752714]
[1738226318856,12.21162714,239.58,239.51,8.03752714]
[1738226319255,1.5541,239.57,239.52,20.0]
[1738226319424,8.03752714,239.56,239.49,8.03752714]
[1738226319628,13.41184853,239.55,239.47,8.03752714]
[1738226319842,14.03770736,239.55,239.47,8.03752714]
[1738226320751,4.1746,239.54,239.47,12.55782139]
[1738226321543,4.1746,239.54,239.51,0.03]
[1738226322851,6.3516,239.53,239.51,0.03]
[1738226323053,18.90942139,239.53,239.51,0.03]
[1738226324959,18.21270736,239.52,239.51,0.03]
[1738226325163,17.58684853,239.52,239.51,0.03]
[1738226331061,6.3516,239.53,239.51,0.03]
[1738226331265,16.73222139,239.55,239.51,0.03]
[1738226331953,17.35808022,239.55,239.51,0.03]
[1738226332661,13.41184853,239.54,239.51,0.03]
[1738226332867,17.35848022,239.53,239.51,0.03]
[1738226333553,13.41184853,239.52,239.51,0.03]
[1738226334752,17.35848022,239.53,239.51,0.03]
[1738226335667,13.41184853,239.52,239.51,0.03]
[1738226335978,17.58684853,239.52,239.51,0.03]
[1738226337250,12.55782139,239.53,239.51,0.03]
[1738226337454,16.73272139,239.53,239.51,0.03]
[1738226340555,4.1749,239.53,239.51,0.03]
[1738226342276,0.063,239.55,239.51,0.03]
[1738226342971,0.063,239.55,239.54,8.0379167]
[1738226343486,0.063,239.55,239.54,8.2888967]
[1738226343768,0.063,239.55,239.54,8.0379167]
[1738226346163,0.063,239.55,239.54,8.2888967]
[1738226348181,0.063,239.55,239.54,8.0379167]
[1738226359671,0.063,239.55,239.51,0.03]
[1738226359869,8.1009167,239.55,239.51,0.03]
[1738226360203,12.2754167,239.55,239.51,20.03]
[1738226360671,4.2375,239.55,239.51,20.03]
[1738226360871,4.2375,239.55,239.51,0.03]
[1738226363000,0.063,239.55,239.51,0.03]
[1738226364492,4.2375,239.55,239.51,0.03]
[1738226366695,0.063,239.55,239.51,0.03]
[1738226368396,0.063,239.55,239.54,8.0379167]
[1738226376010,0.063,239.55,239.52,8.0379167]
[1738226377406,0.063,239.55,239.54,8.0379167]
[1738226379901,0.063,239.55,239.52,8.0379167]
[1738226380614,0.063,239.55,239.51,0.03]
[1738226380823,12.90127553,239.55,239.51,0.03]
[1738226381034,13.41184853,239.54,239.51,0.03]
[1738226381197,8.66377553,239.53,239.51,0.03]
[1738226382422,4.175,239.52,239.51,0.03]
[1738226384915,17.58684853,239.52,239.51,0.03]
[1738226385217,12.2127167,239.53,239.51,0.03]
[1738226385718,14.03770736,239.52,239.51,0.03]
[1738226388000,18.21270736,239.52,239.51,0.03]
[1738226388619,0.063,239.55,239.54,21.0]
[1738226388918,0.03,239.61,239.54,28.66372386]
[1738226389130,0.03,239.61,239.57,8.0379167]
[1738226389311,0.03,239.61,239.59,8.0379167]
[1738226389619,0.03,239.61,239.57,8.0379167]
[1738226392616,0.03,239.61,239.58,32.54361045]
[1738226401109,0.03,239.61,239.6,12.54361045]
[1738226401618,0.03,239.61,239.6,12.92008045]
[1738226402018,0.03,239.61,239.6,12.54361045]
[1738226405038,0.03,239.61,239.58,12.54361045]
[1738226405740,0.03,239.61,239.6,0.03]
[1738226406949,12.57361045,239.61,239.6,0.03]
[1738226407514,0.03,239.61,239.6,0.03]
[1738226414953,0.03,239.63,239.6,0.65597439]
[1738226415241,0.03,239.63,239.61,28.03073909]
[1738226417638,0.03,239.63,239.61,8.03073909]
[1738226417840,0.03,239.63,239.61,28.03073909]
[1738226418048,0.03,239.63,239.61,8.03073909]
[1738226418559,0.03,239.63,239.6,0.03]
[1738226420248,0.03,239.63,239.61,8.03073909]
[1738226427260,0.03,239.63,239.61,8.40720909]
[1738226427759,0.03,239.63,239.61,8.53269909]
[1738226428260,0.03,239.63,239.61,10.03489909]
[1738226428625,0.03,239.63,239.61,9.90940909]
[1738226429237,0.03,239.63,239.61,10.06489909]
[1738226430052,0.03,239.63,239.61,24.47674762]
[1738226430240,0.03,239.63,239.62,0.37647]
[1738226430441,0.03,239.63,239.62,1.00216425]
[1738226432951,0.03,239.63,239.62,1.12765425]
[1738226433253,0.03,239.63,239.62,48.66245914]
[1738226433567,0.063,239.67,239.66,22.50196]
[1738226433849,0.063,239.79,239.72,20.0]
[1738226434053,0.063,239.79,239.77,8.03073909]
[1738226434764,0.063,239.79,239.77,4.50157334]
[1738226438338,12.26403909,239.79,239.73,8.03073909]
[1738226438659,12.26403909,239.79,239.71,8.03073909]
[1738226440455,12.51369792,239.79,239.71,8.03073909]
[1738226440655,13.41184853,239.78,239.71,8.03073909]
[1738226440864,13.41184853,239.78,239.66,1.5342]
[1738226441049,8.03073909,239.77,239.69,8.03073909]
[1738226443773,8.03073909,239.76,239.68,8.03073909]
[1738226444772,4.171,239.75,239.68,8.03073909]
[1738226444976,12.20173909,239.75,239.68,8.03073909]
[1738226445160,8.03073909,239.74,239.67,8.03073909]
[1738226445359,8.03073909,239.73,239.66,8.03073909]
[1738226446152,8.03073909,239.68,239.62,0.03]
[1738226446355,8.03073909,239.67,239.62,0.03]
[1738226447288,4.1725,239.66,239.62,0.03]
[1738226447579,8.03073909,239.67,239.62,0.03]
[1738226447954,12.20323909,239.67,239.62,0.03]
[1738226448162,8.03073909,239.67,239.62,0.03]
[1738226448869,12.20323909,239.67,239.62,0.03]
[1738226449055,8.03073909,239.66,239.62,0.03]
[1738226449251,12.20323909,239.67,239.62,0.03]
[1738226451858,4.1725,239.67,239.62,0.03]
[1738226454479,4.42215883,239.67,239.62,0.03]
[1738226456103,4.1725,239.67,239.62,0.03]
[1738226459759,8.03073909,239.68,239.62,0.03]
[1738226460057,4.1722,239.69,239.62,8.06073909]
[1738226462386,4.42185883,239.69,239.62,8.06073909]
[1738226463187,4.42185883,239.69,239.62,0.03]
[1738226463188,8.03073909,239.68,239.62,0.03]
[1738226463388,4.1724,239.67,239.62,0.03]
[1738226471295,13.41184853,239.71,239.62,8.06073909]
[1738226471296,4.1718,239.71,239.62,8.06073909]
[1738226471487,4.1718,239.71,239.65,8.03073909]
[1738226471795,8.03073909,239.7,239.62,8.06073909]
[1738226472471,4.172,239.69,239.62,8.06073909]
[1738226474902,8.03073909,239.68,239.62,0.03]
[1738226476494,13.41184853,239.67,239.62,0.03]
[1738226476689,21.44258762,239.63,239.62,0.03]
[1738226477696,21.69224645,239.63,239.62,0.03]
[1738226478073,21.69224645,239.63,239.61,0.03]
[1738226478074,14.91380853,239.62,239.61,0.03]
[1738226478270,14.91380853,239.62,239.6,0.03]
[1738226478472,22.19420645,239.61,239.6,0.0001]
[1738226478691,27.36760645,239.61,239.6,0.0001]
[1738226481593,26.36760645,239.61,239.6,0.0001]
[1738226481778,25.86564645,239.61,239.6,0.0001]
[1738226484503,12.103039,239.64,239.6,0.0001]
[1738226484504,8.28039792,239.63,239.6,0.0001]
[1738226484676,4.1729,239.65,239.6,0.0001]
[1738226484882,24.53327797,239.66,239.61,8.03073909]
[1738226485081,24.53327797,239.66,239.63,8.03073909]
[1738226486098,4.172,239.69,239.63,8.03073909]
[1738226486298,8.03073909,239.71,239.63,8.03073909]
[1738226486602,4.1718,239.7,239.63,8.03073909]
[1738226488100,4.1718,239.7,239.6,0.0001]
[1738226488101,8.03073909,239.75,239.67,8.03073909]
[1738226488288,4.1713,239.74,239.67,8.03073909]
[1738226489281,8.03073909,239.75,239.67,8.03073909]
[1738226489480,8.03073909,239.75,239.6,1.12793501]
[1738226489481,4.171,239.75,239.69,8.03073909]
[1738226490099,0.063,239.77,239.71,8.03073909]
[1738226491902,8.03073909,239.73,239.66,9.57133909]
[1738226492614,12.20213909,239.73,239.66,9.57133909]
[1738226493703,12.20213909,239.73,239.66,1.5406]
[1738226496398,8.03073909,239.71,239.66,1.5406]
[1738226498211,4.42145883,239.7,239.62,8.03073909]
[1738226498389,8.03073909,239.69,239.6,9.58883909]
[1738226498596,8.03073909,239.67,239.6,9.58883909]
[1738226499796,8.03073909,239.67,239.6,1.5581]
[1738226499992,8.03073909,239.65,239.6,1.5581]
[1738226500199,0.24965883,239.64,239.6,0.0001]
[1738226500509,12.20383909,239.63,239.6,0.0001]
[1738226500910,0.24965883,239.62,239.6,0.0001]
[1738226502012,12.20353909,239.65,239.6,0.0001]
[1738226502314,8.28039792,239.71,239.63,8.03073909]
[1738226502488,4.1716,239.72,239.65,8.03073909]
[1738226502892,4.42095883,239.74,239.67,8.03073909]
[1738226503111,4.1713,239.74,239.67,8.03073909]
[1738226503921,8.03073909,239.73,239.65,8.03073909]
[1738226504210,8.28039792,239.73,239.65,8.03073909]
[1738226504602,12.78780562,239.73,239.65,12.53814679]
[1738226505416,16.95930562,239.73,239.65,12.53814679]
[1738226505590,16.95930562,239.73,239.64,1.6352]
[1738226505591,13.41184853,239.72,239.64,1.6352]
[1738226505794,12.53814679,239.69,239.6,0.0001]
[1738226505997,0.24965883,239.68,239.6,0.0001]
[1738226506517,0.24965883,239.68,239.62,20.0]
[1738226506817,12.53814679,239.69,239.62,20.0]
[1738226507214,12.53814679,239.69,239.6,0.0001]
[1738226507215,16.70984679,239.71,239.63,12.53814679]
[1738226508914,10.4283,239.73,239.65,12.53814679]
[1738226508915,12.53814679,239.73,239.65,12.53814679]
[1738226509124,12.53814679,239.75,239.67,12.53814679]
[1738226510108,16.70914679,239.75,239.67,12.53814679]
[1738226510622,16.70914679,239.75,239.65,12.53814679]
[1738226511194,12.53814679,239.73,239.65,12.53814679]
[1738226512098,16.70964679,239.73,239.65,12.53814679]
[1738226513897,16.70964679,239.73,239.6,0.0001]
[1738226513898,12.53814679,239.71,239.63,12.53814679]
[1738226514900,16.70994679,239.71,239.63,12.53814679]
[1738226516419,0.24965883,239.7,239.63,12.53814679]
[1738226516616,4.1718,239.7,239.63,12.53814679]
[1738226517422,4.1713,239.74,239.67,12.53814679]
[1738226518121,4.1713,239.74,239.65,12.53814679]